fUSD/lending_fUSD_20250116
["ID","MTS","AMOUNT","RATE_DAILY","PERIOD"]
[349151795,1736995853277,-546.17406495,0.00043013,18]
[349151796,1736995853286,-500.0,0.00043013,18]
[349151797,1736995853295,-630.41,0.00043013,18]
[349151798,1736995853304,-500.0,0.00043013,18]
[349151799,1736995853313,-500.0,0.00043013,18]
[349151800,1736995853323,-630.41,0.00043013,18]
[349151801,1736995853333,-630.41,0.00043013,18]
[349151802,1736995853342,-500.0,0.00043013,18]
[349151803,1736995853352,-500.0,0.00043013,18]
[349151804,1736995853362,-500.0,0.00043013,18]
[349151805,1736995853371,-630.41,0.00043013,18]
[349151806,1736995853381,-500.0,0.00043013,18]
[349151807,1736995853391,-500.0,0.00043013,18]
[349151808,1736995853401,-500.0,0.00043013,18]
[349151809,1736995853410,-630.41,0.00043013,18]
[349151810,1736995853419,-260.80755381,0.00043013,18]
[349151811,1736995853428,-500.0,0.00043013,18]
[349151812,1736995853437,-500.0,0.00043013,18]
[349151813,1736995853448,-630.41,0.00043013,18]
[349151814,1736995853459,-500.0,0.00043013,18]
[349151815,1736995853469,-500.0,0.00043013,18]
[349151816,1736995853478,-630.49566463,0.00043013,18]
[349151817,1736995853488,-500.0,0.00043013,18]
[349151818,1736995853498,-500.0,0.00043013,18]
[349151819,1736995853508,-509.77920688,0.00043013,18]
[349151820,1736995853650,-500.0,0.00043013,18]
[349151821,1736995853661,-500.0,0.00043013,18]
[349151822,1736995853671,-510.94441253,0.00043013,18]
[349151823,1736995853680,-500.0,0.00043013,18]
[349151824,1736995853691,-416.65759293,0.00043013,18]
[349151825,1736995853701,-500.0,0.00043013,18]
[349151826,1736995853711,-500.0,0.00043013,18]
[349151827,1736995853721,-500.0,0.00043013,18]
[349151828,1736995853731,-500.0,0.00043013,18]
[349151829,1736995853741,-500.0,0.00043013,18]
[349151830,1736995853750,-500.0,0.00043013,18]
[349151831,1736995853759,-500.0,0.00043013,18]
[349151832,1736995853769,-500.0,0.00043013,18]
[349151833,1736995853778,-500.0,0.00043013,18]
[349151834,1736995853787,-500.0,0.00043013,18]
[349151835,1736995853797,-500.0,0.00043013,18]
[349151836,1736995853807,-500.0,0.00043013,18]
[349151837,1736995853817,-500.0,0.00043013,18]
[349151838,1736995853827,-500.0,0.00043013,18]
[349151839,1736995853837,-500.0,0.00043013,18]
[349151840,1736995853846,-500.0,0.00043013,18]
[349151841,1736995853856,-500.0,0.00043013,18]
[349151842,1736995853866,-500.0,0.00043013,18]
[349151843,1736995853875,-500.0,0.00043013,18]
[349151844,1736995853885,-500.0,0.00043013,18]
[349151845,1736995853895,-500.0,0.00043013,18]
[349151846,1736995853904,-500.0,0.00043013,18]
[349151847,1736995853914,-500.0,0.00043013,18]
[349151848,1736995853924,-500.0,0.00043013,18]
[349151849,1736995853933,-500.0,0.00043013,18]
[349151850,1736995853944,-500.0,0.00043013,18]
[349151851,1736995853954,-500.0,0.00043013,18]
[349151852,1736995853963,-513.19107444,0.00043013,18]
[349151853,1736995853973,-500.0,0.00043013,18]
[349151854,1736995853983,-500.0,0.00043013,18]
[349151855,1736995853994,-500.0,0.00043013,18]
[349151856,1736995854003,-500.0,0.00043013,18]
[349151857,1736995854014,-500.0,0.00043013,18]
[349151858,1736995854024,-500.0,0.00043013,18]
[349151859,1736995854034,-500.0,0.00043013,18]
[349151860,1736995854043,-500.0,0.00043013,18]
[349151861,1736995854052,-500.0,0.00043013,18]
[349151862,1736995854061,-500.0,0.00043013,18]
[349151863,1736995854071,-500.0,0.00043013,18]
[349151864,1736995854081,-500.0,0.00043013,18]
[349151865,1736995854091,-363.95767817,0.00043013,18]
[349151866,1736995854105,-500.0,0.00043013,18]
[349151867,1736995854115,-500.0,0.00043013,18]
[349151868,1736995854124,-500.0,0.00043013,18]
[349151869,1736995854135,-503.17423794,0.00043013,18]
[349151870,1736995854146,-500.0,0.00043013,18]
[349151871,1736995854156,-500.0,0.00043013,18]
[349151872,1736995854166,-500.0,0.00043013,18]
[349151873,1736995854176,-500.0,0.00043013,18]
[349151874,1736995854186,-500.0,0.00043013,18]
[349151875,1736995854198,-500.0,0.00043013,18]
[349151876,1736995854207,-500.0,0.00043013,18]
[349151877,1736995854217,-500.0,0.00043013,18]
[349151878,1736995854227,-500.0,0.00043013,18]
[349151879,1736995854237,-500.0,0.00043013,18]
[349151880,1736995854247,-434.76527023,0.00043013,18]
[349151881,1736995854257,-500.0,0.00043013,18]
[349151882,1736995854267,-500.0,0.00043013,18]
[349151883,1736995854277,-500.0,0.00043013,18]
[349151884,1736995854287,-500.0,0.00043013,18]
[349151885,1736995854297,-500.0,0.00043013,18]
[349151886,1736995854307,-509.63567525,0.00043013,18]
[349151887,1736995854316,-646.38998973,0.00043013,18]
[349151888,1736995854326,-500.0,0.00043013,18]
[349151889,1736995854336,-513.62997513,0.00043013,18]
[349151890,1736995854345,-500.0,0.00043013,18]
[349151891,1736995854355,-500.0,0.00043013,18]
[349151892,1736995854364,-500.0,0.00043013,18]
[349151893,1736995854374,-500.0,0.00043013,18]
[349151894,1736995854383,-500.0,0.00043013,18]
[349151895,1736995854392,-500.0,0.00043013,18]
[349151896,1736995854402,-549.23286524,0.00043013,18]
[349151897,1736995854411,-500.0,0.00043013,18]
[349151898,1736995854420,-500.0,0.00043013,18]
[349151899,1736995854430,-500.0,0.00043013,18]
[349151900,1736995854439,-507.90241655,0.00043013,18]
[349151901,1736995854449,-151.0,0.00043013,14]
[349151902,1736995854459,-151.0,0.00043013,14]
[349151903,1736995854469,-151.0,0.00043013,14]
[349151904,1736995854478,-151.0,0.00043013,14]
[349151905,1736995854488,-153.351525,0.00043013,14]
[349151906,1736995854498,-933.48,0.00043013,18]
[349151907,1736995854507,-933.48,0.00043013,18]
[349151908,1736995854517,-500.0,0.00043013,18]
[349151909,1736995854527,-151.0,0.00043013,14]
[349151910,1736995854536,-933.48,0.00043013,18]
[349151911,1736995854547,-500.0,0.00043013,18]
[349151912,1736995854557,-151.0,0.00043013,14]
[349151913,1736995854566,-124.20307981,0.00043013,18]
[349151914,1736995854638,-809.27692019,0.00043013,18]
[349151915,1736995854648,-500.0,0.00043013,18]
[349151916,1736995854658,-151.0,0.00043013,14]
[349151917,1736995854667,-933.48,0.00043013,18]
[349151918,1736995854677,-507.52438374,0.00043013,18]
[349151919,1736995854688,-264.24993155,0.00043013,18]
[349151920,1736995854710,-495.2572,0.00043013,18]
[349151921,1736995854723,-173.97286845,0.00043013,18]
[349151922,1736995854733,-151.0,0.00043013,14]
[349151923,1736995854742,-115.14858395,0.00043013,14]
[349151924,1736995854755,-35.85141605,0.00043013,14]
[349151925,1736995854765,-824.15358295,0.00043013,18]
[349151926,1736995854778,-109.32641705,0.00043013,18]
[349151927,1736995854788,-151.0,0.00043013,14]
[349151928,1736995854798,-933.48,0.00043013,18]
[349151929,1736995854808,-151.0,0.00043013,14]
[349151930,1736995854818,-14.84907473,0.00043013,18]
[349151931,1736995854832,-918.63092527,0.00043013,18]
[349151932,1736995854842,-151.0,0.00043013,14]
[349151933,1736995854851,-933.48,0.00043013,18]
[349151934,1736995854861,-933.48,0.00043013,18]
[349151935,1736995854871,-105.62547573,0.00043013,18]
[349151936,1736995855007,-827.85452427,0.00043013,18]
[349151937,1736995855018,-151.0,0.00043013,14]
[349151938,1736995855028,-151.0,0.00043013,14]
[349151939,1736995855038,-933.48,0.00043013,18]
[349151940,1736995855048,-501.56190817,0.00043013,18]
[349151941,1736995855058,-151.0,0.00043013,14]
[349151942,1736995855068,-933.48,0.00043013,18]
[349151943,1736995855078,-933.48,0.00043013,18]
[349151944,1736995855089,-151.0,0.00043013,14]
[349151945,1736995855102,-344.7570039,0.00043013,18]
[349151946,1736995855112,-151.0,0.00043013,14]
[349151947,1736995855122,-933.48,0.00043013,18]
[349151948,1736995855131,-245.193345,0.00043013,14]
[349151949,1736995855143,-933.48,0.00043013,18]
[349151950,1736995855153,-500.0,0.00043013,18]
[349151951,1736995855163,-933.48,0.00043013,18]
[349151952,1736995855175,-500.0,0.00043013,18]
[349151953,1736995855186,-933.48,0.00043013,18]
[349151954,1736995855197,-500.0,0.00043013,18]
[349151955,1736995855206,-933.48,0.00043013,18]
[349151956,1736995855216,-500.0,0.00043013,18]
[349151957,1736995855226,-933.48,0.00043013,18]
[349151958,1736995855235,-500.0,0.00043013,18]
[349151959,1736995855244,-933.48,0.00043013,18]
[349151960,1736995855255,-500.0,0.00043013,18]
[349151961,1736995855265,-933.48,0.00043013,18]
[349151962,1736995855275,-151.0,0.00043013,14]
[349151963,1736995855284,-933.66576114,0.00043013,18]
[349151964,1736995855294,-500.0,0.00043013,18]
[349151965,1736995855303,-151.0,0.00043013,14]
[349151966,1736995855313,-500.0,0.00043013,18]
[349151967,1736995855322,-151.0,0.00043013,14]
[349151968,1736995855332,-500.0,0.00043013,18]
[349151969,1736995855341,-151.0,0.00043013,14]
[349151970,1736995855351,-151.0,0.00043013,14]
[349151971,1736995855360,-500.0,0.00043013,18]
[349151972,1736995855370,-152.007675,0.00043013,14]
[349151973,1736995855379,-500.0,0.00043013,18]
[349151974,1736995855389,-500.0,0.00043013,18]
[349151975,1736995855399,-500.0,0.00043013,18]
[349151976,1736995855408,-500.0,0.00043013,18]
[349151977,1736995855418,-500.0,0.00043013,18]
[349151978,1736995855427,-500.0,0.00043013,18]
[349151979,1736995855437,-500.0,0.00043013,18]
[349151980,1736995855448,-151.0,0.00043013,14]
[349151981,1736995855459,-500.0,0.00043013,18]
[349151982,1736995855471,-500.0,0.00043013,18]
[349151983,1736995855481,-151.0,0.00043013,14]
[349151984,1736995855491,-500.0,0.00043013,18]
[349151985,1736995855502,-500.0,0.00043013,18]
[349151986,1736995855511,-500.0,0.00043013,18]
[349151987,1736995855521,-151.0,0.00043013,14]
[349151988,1736995855531,-185.01129015,0.00043013,18]
[349151989,1736995855540,-500.0,0.00043013,18]
[349151990,1736995855550,-500.0,0.00043013,18]
[349151991,1736995855559,-152.251889,0.00043013,14]
[349151992,1736995855569,-500.39030307,0.00043013,18]
[349151993,1736995855578,-500.0,0.00043013,18]
[349151994,1736995855588,-500.0,0.00043013,18]
[349151995,1736995855598,-505.40185942,0.00043013,18]
[349151996,1736995855607,-63.55629484,0.00043013,18]
[349151997,1736995855640,-163.9063027,0.00043013,18]
[349151998,1736995855649,-500.0,0.00043013,18]
[349151999,1736995855659,-500.0,0.00043013,18]
[349152000,1736995855669,-500.0,0.00043013,18]
[349152001,1736995855678,-521.83835386,0.00043013,18]
[349152002,1736995855688,-500.0,0.00043013,18]
[349152003,1736995855698,-501.22951178,0.00043013,18]
[349152004,1736995855708,-500.0,0.00043013,18]
[349152005,1736995855718,-500.0,0.00043013,18]
[349152006,1736995855727,-500.0,0.00043013,18]
[349152007,1736995855737,-500.0,0.00043013,18]
[349152008,1736995855747,-500.0,0.00043013,18]
[349152009,1736995855756,-500.0,0.00043013,18]
[349152010,1736995855765,-500.0,0.00043013,18]
[349152011,1736995855775,-500.0,0.00043013,18]
[349152012,1736995855914,-500.0,0.00043013,18]
[349152013,1736995855923,-500.0,0.00043013,18]
[349152014,1736995855933,-500.0,0.00043013,18]
[349152015,1736995855943,-500.0,0.00043013,18]
[349152016,1736995855953,-500.0,0.00043013,18]
[349152017,1736995855963,-500.0,0.00043013,18]
[349152018,1736995855972,-500.0,0.00043013,18]
[349152019,1736995855982,-500.0,0.00043013,18]
[349152020,1736995855991,-508.67331572,0.00043013,18]
[349152021,1736995856001,-500.0,0.00043013,18]
[349152022,1736995856010,-500.0,0.00043013,18]
[349152023,1736995856020,-500.0,0.00043013,18]
[349152024,1736995856029,-500.0,0.00043013,18]
[349152025,1736995856039,-500.0,0.00043013,18]
[349152026,1736995856048,-242.28165562,0.00043013,18]
[349152027,1736995856058,-500.0,0.00043013,18]
[349152028,1736995856068,-500.0,0.00043013,18]
[349152029,1736995856077,-500.0,0.00043013,18]
[349152030,1736995856087,-500.0,0.00043013,18]
[349152031,1736995856098,-500.0,0.00043013,18]
[349152032,1736995856110,-500.0,0.00043013,18]
[349152033,1736995856120,-500.0,0.00043013,18]
[349152034,1736995856130,-500.0,0.00043013,18]
[349152035,1736995856140,-500.0,0.00043013,18]
[349152036,1736995856149,-500.0,0.00043013,18]
[349152037,1736995856159,-500.0,0.00043013,18]
[349152038,1736995856168,-500.0,0.00043013,18]
[349152039,1736995856178,-500.0,0.00043013,18]
[349152040,1736995856187,-503.36507439,0.00043013,18]
[349152041,1736995856197,-500.0,0.00043013,18]
[349152042,1736995856206,-248.07842754,0.00043013,18]
[349152043,1736995856216,-500.0,0.00043013,18]
[349152044,1736995856225,-500.0,0.00043013,18]
[349152045,1736995856235,-500.0,0.00043013,18]
[349152046,1736995856244,-500.0,0.00043013,18]
[349152047,1736995856253,-500.0,0.00043013,18]
[349152048,1736995856263,-500.0,0.00043013,18]
[349152049,1736995856272,-500.0,0.00043013,18]
[349152050,1736995856282,-602.16758587,0.00043013,18]
[349152051,1736995856291,-500.0,0.00043013,18]
[349152052,1736995856300,-622.92573615,0.00043013,18]
[349152053,1736995856310,-500.0,0.00043013,18]
[349152054,1736995856319,-500.0,0.00043013,18]
[349152055,1736995856328,-442.57579666,0.00043013,18]
[349152056,1736995856338,-500.0,0.00043013,18]
[349152057,1736995856346,-505.52872228,0.00043013,18]
[349152058,1736995856355,-500.0,0.00043013,18]
[349152059,1736995856365,-500.0,0.00043013,18]
[349152060,1736995856374,-500.0,0.00043013,18]
[349152061,1736995856383,-500.0,0.00043013,18]
[349152062,1736995856392,-500.73724952,0.00043013,18]
[349152063,1736995856402,-500.0,0.00043013,18]
[349152064,1736995856411,-500.0,0.00043013,18]
[349152065,1736995856420,-500.0,0.00043013,7]
[349152066,1736995856430,-500.0,0.00043013,18]
[349152067,1736995856439,-503.17971494,0.00043013,18]
[349152068,1736995856450,-513.8996201,0.00043013,18]
[349152069,1736995856459,-500.0,0.00043013,18]
[349152070,1736995856468,-500.0,0.00043013,18]
[349152071,1736995856478,-500.0,0.00043013,7]
[349152072,1736995856487,-500.0,0.00043013,18]
[349152073,1736995856496,-163.24575967,0.00043013,18]
[349152074,1736995856534,-336.75424033,0.00043013,18]
[349152075,1736995856543,-500.0,0.00043013,18]
[349152076,1736995856553,-500.0,0.00043013,7]
[349152077,1736995856563,-500.0,0.00043013,18]
[349152078,1736995856572,-500.0,0.00043013,18]
[349152079,1736995856582,-500.0,0.00043013,18]
[349152080,1736995856592,-500.0,0.00043013,7]
[349152081,1736995856601,-30.33958258,0.00043013,18]
[349152082,1736995856615,-469.66041742,0.00043013,18]
[349152083,1736995856626,-500.0,0.00043013,18]
[349152084,1736995856635,-334.17143277,0.00043013,7]
[349152085,1736995856645,-500.0,0.00043013,18]
[349152086,1736995856655,-500.0,0.00043013,18]
[349152087,1736995856664,-500.0,0.00043013,18]
[349152088,1736995856677,-500.0,0.00043013,18]
[349152089,1736995856686,-500.0,0.00043013,18]
[349152090,1736995856696,-500.0,0.00043013,18]
[349152091,1736995856706,-275.96725405,0.00043013,18]
[349152092,1736995856715,-500.0,0.00043013,18]
[349152093,1736995856725,-500.0,0.00043013,18]
[349152094,1736995856735,-500.0,0.00043013,18]
[349152095,1736995856745,-500.0,0.00043013,18]
[349152096,1736995856755,-500.0,0.00043013,18]
[349152097,1736995856766,-500.0,0.00043013,18]
[349152098,1736995856776,-500.0,0.00043013,18]
[349152099,1736995856785,-500.0,0.00043013,18]
[349152100,1736995856794,-294.59427308,0.00043013,18]
[349152101,1736995856812,-205.40572692,0.00043013,18]
[349152102,1736995856821,-500.0,0.00043013,18]
[349152103,1736995856831,-21.64233714,0.00043013,18]
[349152104,1736995856930,-478.35766286,0.00043013,18]
[349152105,1736995856940,-500.0,0.00043013,18]
[349152106,1736995856951,-500.0,0.00043013,18]
[349152107,1736995856960,-509.42019893,0.00043013,18]
[349152108,1736995856970,-500.0,0.00043013,18]
[349152109,1736995856979,-504.71975679,0.00043013,18]
[349152110,1736995856989,-500.0,0.00043013,18]
[349152111,1736995856999,-500.0,0.00043013,18]
[349152112,1736995857008,-500.0,0.00043013,18]
[349152113,1736995857018,-500.0,0.00043013,18]
[349152114,1736995857027,-500.0,0.00043013,18]
[349152115,1736995857037,-500.0,0.00043013,18]
[349152116,1736995857047,-500.0,0.00043013,18]
[349152117,1736995857056,-500.0,0.00043013,18]
[349152118,1736995857066,-500.0,0.00043013,18]
[349152119,1736995857075,-500.0,0.00043013,18]
[349152120,1736995857085,-244.74772845,0.00043013,18]
[349152121,1736995857096,-426.11456689,0.00043013,18]
[349152122,1736995857107,-500.0,0.00043013,18]
[349152123,1736995857117,-500.0,0.00043013,18]
[349152124,1736995857127,-500.0,0.00043013,18]
[349152125,1736995857136,-101.047553,0.00043013,18]
[349152126,1736995857156,-398.952447,0.00043013,18]
[349152127,1736995857165,-500.0,0.00043013,18]
[349152128,1736995857176,-500.0,0.00043013,18]
[349152129,1736995857186,-484.10826185,0.00043013,18]
[349152130,1736995857200,-23.1635356,0.00043013,18]
[349152131,1736995857210,-501.85257578,0.00043013,18]
[349152132,1736995857219,-521.31408967,0.00043013,18]
[349152133,1736995857230,-500.0,0.00043013,18]
[349152134,1736995857240,-500.0,0.00043013,18]
[349152135,1736995857249,-500.0,0.00043013,18]
[349152136,1736995857259,-500.0,0.00043013,18]
[349152137,1736995857270,-500.0,0.00043013,18]
[349152138,1736995857280,-500.0,0.00043013,18]
[349152139,1736995857289,-500.0,0.00043013,18]
[349152140,1736995857299,-500.0,0.00043013,18]
[349152141,1736995857310,-60.22140413,0.00043013,18]
[349152142,1736995857326,-432.82035298,0.00043013,18]
[349152143,1736995857337,-6.95824289,0.00043013,18]
[349152144,1736995857348,-500.0,0.00043013,18]
[349152145,1736995857357,-500.0,0.00043013,18]
[349152146,1736995857368,-500.0,0.00043013,18]
[349152147,1736995857378,-173.04175711,0.00043013,18]
[349152148,1736995857391,-326.95824289,0.00043013,18]
[349152149,1736995857401,-155.54175711,0.00043013,18]
[349152170,1736997032065,-600.0,0.000381,2]
[349152172,1736997032074,-426.0,0.00038986,90]
[349152173,1736997032083,-961.41,0.00039725,120]
[349152174,1736997032092,-294.04,0.00039927,2]
[349152175,1736997032101,-377.08,0.00041408,120]
[349152176,1736997032111,-250.0,0.00041456,2]
[349152177,1736997032120,-91.47,0.00041534,2]
[349152178,1736997032313,-300.0,0.00041534,2]
[349152179,1736997032325,-608.53,0.00041534,2]
[349152180,1736997032334,-250.0,0.00041603,2]
[349152181,1736997032344,-3.33410977,0.00041625,2]
[349152182,1736997032354,-23896.66589023,0.00041625,2]
[349152183,1736997032363,-163.71,0.00041734,120]
[349152184,1736997032372,-5467.46,0.00041734,2]
[349152185,1736997032382,-172.85,0.00041784,2]
[349152186,1736997032392,-205.95330717,0.000419,9]
[349152187,1736997032401,-165.58,0.00041979,2]
[349152188,1736997032410,-299.99,0.00041979,120]
[349152189,1736997032418,-7422.59,0.00041979,30]
[349152190,1736997032427,-478.1,0.00041979,30]
[349152191,1736997032437,-1312.19,0.00041979,2]
[349152192,1736997032445,-1512.91,0.00041979,2]
[349152193,1736997032455,-15584.58,0.00041979,30]
[349152194,1736997032464,-9999.99,0.00041979,2]
[349152195,1736997032475,-3196.42,0.00041979,2]
[349152196,1736997032484,-5531.84,0.00041979,2]
[349152197,1736997032493,-2992.91,0.00041979,2]
[349152198,1736997032502,-999.99,0.00041979,2]
[349152199,1736997032511,-250.0,0.00042002,120]
[349152200,1736997032521,-400.0,0.000421,15]
[349152201,1736997032530,-294.04,0.00042191,2]
[349152202,1736997032539,-800.0,0.000422,15]
[349152203,1736997032548,-1300.0,0.000423,15]
[349152204,1736997032558,-4155.0,0.00042396,117]
[349152205,1736997032567,-1700.0,0.000424,15]
[349152206,1736997032577,-1787.248,0.000425,64]
[349152207,1736997032586,-153.072,0.000425,64]
[349152208,1736997032595,-2200.0,0.000425,15]
[349152209,1736997032604,-205.95330717,0.000425,9]
[349152210,1736997032613,-400.0,0.000426,15]
[349152211,1736997032622,-400.0,0.000427,15]
[349152212,1736997032631,-1034.79928057,0.0004274,120]
[349152213,1736997032640,-400.0,0.000428,15]
[349152214,1736997032649,-3083.5991,0.00042813,2]
[349152215,1736997032658,-1339.9689,0.00042813,2]
[349152216,1736997032667,-1000.0,0.00042813,2]
[349152217,1736997032675,-324.2881,0.00042813,2]
[349152218,1736997032684,-2500.0,0.00042813,2]
[349152219,1736997032693,-709.9694,0.00042813,2]
[349152220,1736997032702,-2158.98082769,0.00042813,2]
[349152221,1736997032711,-400.0,0.000429,15]
[349152222,1736997032719,-18912.66632022,0.00042913,2]
[349152223,1736997032730,-9836.4400418,0.00042913,2]
[349152224,1736997032849,-2010.06740946,0.00042913,2]
[349152225,1736997033085,-14151.77029386,0.00042913,2]
[349152226,1736997033098,-77521.30543466,0.00042913,2]
[349152227,1736997033108,-5000.0,0.00042913,2]
[349152228,1736997033117,-680.83611628,0.00042913,2]
[349152229,1736997033129,-852.97958372,0.00042913,2]
[349152230,1736997033138,-5662.40593728,0.00042913,2]
[349152231,1736997033149,-188.26736272,0.00042913,2]
[349152232,1736997033159,-578.12674491,0.00042913,2]
[349152277,1736997038004,-5260.24335509,0.00042913,2]
[349152278,1736997038014,-1285.8283,0.00042913,2]
[349152279,1736997038024,-303.6246,0.00042913,2]
[349152280,1736997038033,-178.6903,0.00042913,2]
[349152281,1736997038043,-408.1651,0.00042913,120]
[349152282,1736997038053,-220.0,0.00042913,2]
[349152283,1736997038063,-1000.0,0.00042913,2]
[349152284,1736997038073,-13824.2306,0.00042913,2]
[349152285,1736997038082,-3954.1243,0.00042913,2]
[349152286,1736997038092,-225.4008,0.00042913,3]
[349152287,1736997038102,-207.39370886,0.00042913,15]
[349152288,1736997038112,-150.5,0.0004299,120]
[349152289,1736997038122,-150.5,0.00043,120]
[349152290,1736997038132,-151.6,0.00043,120]
[349152291,1736997038141,-5000.0,0.00043,30]
[349152292,1736997038151,-5000.0,0.00043,30]
[349152293,1736997038161,-3421.4109,0.00043,120]
[349152294,1736997038171,-150.5,0.0004301,120]
[349152295,1736997038180,-1000.0,0.00043012,120]
[349152296,1736997038190,-500.0,0.00043012,7]
[349152297,1736997038199,-1000.5368991,0.00043012,120]
[349152298,1736997038209,-30465.68976081,0.00043013,120]
[349152299,1736997038221,-11750.88819788,0.00043013,120]
[349152300,1736997038231,-1052.0,0.00043013,7]
[349152301,1736997038240,-500.0,0.00043013,18]
[349152302,1736997038250,-500.0,0.00043013,18]
[349152303,1736997038259,-500.0,0.00043013,18]
[349152304,1736997038268,-326.719332,0.00043013,18]
[349152305,1736997038278,-500.0,0.00043013,18]
[349152306,1736997038287,-416.35979412,0.00043013,18]
[349152307,1736997038300,-83.64020588,0.00043013,18]
[349152308,1736997038309,-500.0,0.00043013,18]
[349152309,1736997038318,-500.0,0.00043013,18]
[349152310,1736997038327,-500.0,0.00043013,18]
[349152311,1736997038335,-507.11299976,0.00043013,18]
[349152312,1736997038344,-503.24672418,0.00043013,18]
[349152313,1736997038354,-629.96525283,0.00043013,18]
[349152314,1736997038363,-534.86072608,0.00043013,18]
[349152315,1736997038372,-501.87377652,0.00043013,18]
[349152316,1736997038382,-500.0,0.00043013,18]
[349152317,1736997038391,-233.74720222,0.00043013,18]
[349152318,1736997038406,-268.30104945,0.00043013,18]
[349152319,1736997038415,-500.0,0.00043013,18]
[349152320,1736997038425,-500.0,0.00043013,18]
[349152321,1736997038435,-500.0,0.00043013,18]
[349152322,1736997038444,-500.0,0.00043013,18]
[349152323,1736997038454,-500.0,0.00043013,18]
[349152324,1736997038463,-500.0,0.00043013,18]
[349152325,1736997038473,-500.0,0.00043013,18]
[349152326,1736997038485,-242.10016193,0.00043013,18]
[349152327,1736997038495,-500.0,0.00043013,18]
[349152328,1736997038506,-500.0,0.00043013,18]
[349152329,1736997038515,-620.95214993,0.00043013,18]
[349152330,1736997038526,-503.11437454,0.00043013,18]
[349152331,1736997038535,-500.0,0.00043013,18]
[349152332,1736997038545,-500.0,0.00043013,18]
[349152333,1736997038557,-500.0,0.00043013,18]
[349152334,1736997038567,-352.85713022,0.00043013,18]
[349152335,1736997038584,-144.29051132,0.00043013,18]
[349152336,1736997038594,-500.0,0.00043013,18]
[349152337,1736997038604,-500.0,0.00043013,18]
[349152338,1736997038614,-500.0,0.00043013,18]
[349152339,1736997038623,-500.0,0.00043013,18]
[349152340,1736997038633,-294.2839095,0.00043013,18]
[349152341,1736997038643,-500.0,0.00043013,18]
[349152342,1736997038653,-500.0,0.00043013,18]
[349152344,1736997038662,-500.0,0.00043013,18]
[349152346,1736997038671,-510.12701924,0.00043013,18]
[349152348,1736997038681,-500.0,0.00043013,18]
[349152350,1736997038690,-500.0,0.00043013,18]
[349152352,1736997038699,-500.0,0.00043013,18]
[349152354,1736997038709,-500.0,0.00043013,18]
[349152356,1736997038718,-500.0,0.00043013,18]
[349152358,1736997038727,-500.0,0.00043013,18]
[349152360,1736997038737,-500.0,0.00043013,18]
[349152362,1736997038747,-500.0,0.00043013,18]
[349152364,1736997038758,-500.0,0.00043013,18]
[349152366,1736997038767,-500.0,0.00043013,18]
[349152368,1736997038776,-500.0,0.00043013,18]
[349152370,1736997038786,-500.0,0.00043013,18]
[349152372,1736997038796,-510.58173832,0.00043013,18]
[349152374,1736997038808,-507.18529318,0.00043013,18]
[349152376,1736997038818,-500.0,0.00043013,7]